fUSD/lending_fUSD_20250414
["ID","MTS","AMOUNT","RATE_DAILY","PERIOD"]
[357944905,1744607444670,-879.67494046,0.00019689,2]
[357944906,1744607444680,-500.0520504,0.00019692,2]
[357944907,1744607444690,-578.29922805,0.00019698,2]
[357944908,1744607444700,-15195.68699835,0.000197,2]
[357944909,1744607444752,-19471.17300165,0.000197,2]
[357944910,1744607444763,-363.85885232,0.00019704,2]
[357944911,1744607444775,-23181.28796779,0.00019705,2]
[357944912,1744607444966,-0.02354742,0.00019082,2]
[357944913,1744607444977,-318.81616005,0.00019082,2]
[357944914,1744607444989,-35.53029253,0.00019082,2]
[357944915,1744607444998,-506.81160882,0.00019452,2]
[357944916,1744607445008,-6177.84464806,0.00019705,2]
[357944917,1744607445017,-1156.59845602,0.00019714,2]
[357944918,1744607445027,-761.68160828,0.00019715,2]
[357944919,1744607445036,-587.14916858,0.00019717,2]
[357944920,1744607445045,-2454.31405103,0.00019717,2]
[357944921,1744607445055,-1156.59845602,0.00019722,2]
[357944922,1744607445067,-330.00274934,0.00019723,2]
[357944923,1744607445081,-500.0,0.00019726,2]
[357944924,1744607445091,-500.0,0.00019726,2]
[357944925,1744607445100,-500.0,0.00019726,2]
[357944926,1744607445110,-500.0,0.00019726,2]
[357944927,1744607445121,-500.0,0.00019726,2]
[357944928,1744607445132,-500.0,0.00019726,2]
[357944929,1744607445141,-500.0,0.00019726,2]
[357944930,1744607445151,-386.71747464,0.00019726,2]
[357944931,1744607445160,-297.44,0.00019726,2]
[357944932,1744607445171,-342.96,0.00019726,2]
[357944933,1744607445180,-453.89,0.00019726,2]
[357944934,1744607445190,-500.0,0.00019726,2]
[357944935,1744607445199,-500.0,0.00019726,2]
[357944936,1744607445209,-344.51917166,0.00019726,2]
[357944937,1744607445218,-194.4791002,0.00019726,2]
[357944938,1744607445227,-536.83544645,0.00019726,2]
[357944939,1744607445237,-500.0,0.00019726,2]
[357944940,1744607445246,-363.99468807,0.00019726,2]
[357944941,1744607445255,-500.0,0.00019726,2]
[357944942,1744607445264,-500.0,0.00019726,2]
[357944943,1744607445273,-434.23871031,0.00019726,2]
[357944944,1744607445283,-500.0,0.00019726,2]
[357944945,1744607445292,-500.0,0.00019726,2]
[357944946,1744607445301,-500.0,0.00019726,2]
[357944947,1744607445311,-264.51640001,0.00019726,2]
[357944948,1744607445320,-302.2,0.00019726,2]
[357944949,1744607445329,-500.0,0.00019726,2]
[357944950,1744607445340,-500.0,0.00019726,2]
[357944951,1744607445349,-500.0,0.00019726,2]
[357944952,1744607445358,-500.0,0.00019726,2]
[357944953,1744607445367,-500.0,0.00019726,2]
[357944954,1744607445377,-500.0,0.00019726,2]
[357944955,1744607445387,-458.35519801,0.00019726,2]
[357944956,1744607445396,-510.75,0.00019726,2]
[357944957,1744607445406,-500.0,0.00019726,2]
[357944958,1744607445415,-308.58,0.00019726,2]
[357944959,1744607445425,-500.0,0.00019726,2]
[357944960,1744607445435,-599.18,0.00019726,2]
[357944961,1744607445444,-500.0,0.00019726,2]
[357944963,1744607445454,-500.0,0.00019726,2]
[357944964,1744607445463,-500.0,0.00019726,2]
[357944965,1744607445473,-391.37777853,0.00019726,2]
[357944966,1744607445482,-240.59035433,0.00019726,2]
[357944967,1744607445491,-500.0,0.00019726,2]
[357944968,1744607445501,-500.0,0.00019726,2]
[357944969,1744607445510,-500.0,0.00019726,2]
[357944970,1744607445520,-500.0,0.00019726,2]
[357944971,1744607445530,-640.49798064,0.00019726,2]
[357944972,1744607445539,-532.21310496,0.00019726,2]
[357944973,1744607445548,-500.0,0.00019726,2]
[357944974,1744607445558,-513.38125148,0.00019726,2]
[357944975,1744607445569,-500.0,0.00019726,2]
[357944976,1744607445579,-500.0,0.00019726,2]
[357944977,1744607445588,-500.0,0.00019726,2]
[357944979,1744607445598,-500.37609689,0.00019726,2]
[357944980,1744607445607,-246.18120077,0.00019726,2]
[357944981,1744607445617,-500.0,0.00019726,2]
[357944982,1744607445626,-500.0,0.00019726,2]
[357944983,1744607445635,-500.0,0.00019726,2]
[357944984,1744607445644,-500.0,0.00019726,2]
[357944985,1744607445654,-538.00552462,0.00019726,2]
[357944986,1744607445663,-500.0,0.00019726,2]
[357944987,1744607445673,-525.26743362,0.00019726,2]
[357944988,1744607445682,-274.79284462,0.00019726,2]
[357944989,1744607445692,-500.0,0.00019726,2]
[357944990,1744607445702,-560.52572256,0.00019726,2]
[357944991,1744607445712,-516.30667691,0.00019726,2]
[357944992,1744607445722,-526.34927083,0.00019726,2]
[357944993,1744607445732,-530.19089063,0.00019726,2]
[357944994,1744607445742,-590.67850446,0.00019726,2]
[357944995,1744607445752,-402.50130336,0.00019726,2]
[357944996,1744607445761,-520.91107147,0.00019726,2]
[357944997,1744607445771,-220.81177657,0.00019726,2]
[357944998,1744607445780,-500.0,0.00019726,2]
[357944999,1744607445790,-500.0,0.00019726,2]
[357945000,1744607445799,-410.48872771,0.00019726,2]
[357945001,1744607445811,-994.27,0.00019726,2]
[357945002,1744607445822,-500.0,0.00019726,2]
[357945003,1744607445832,-500.0,0.00019726,2]
[357945004,1744607445842,-500.0,0.00019726,2]
[357945005,1744607445852,-500.0,0.00019726,2]
[357945006,1744607445861,-500.0,0.00019726,2]
[357945007,1744607445871,-500.0,0.00019726,2]
[357945008,1744607445881,-613.49476184,0.00019726,2]
[357945009,1744607445891,-151.60778395,0.00019726,2]
[357945010,1744607445900,-500.0,0.00019726,2]
[357945011,1744607445910,-500.0,0.00019726,2]
[357945012,1744607445919,-891.77,0.00019726,2]
[357945013,1744607445929,-500.0,0.00019726,2]
[357945014,1744607445939,-500.0,0.00019726,2]
[357945015,1744607445949,-533.18965802,0.00019726,2]
[357945016,1744607445959,-531.94314492,0.00019726,2]
[357945017,1744607445969,-1136.05129862,0.00019726,2]
[357945018,1744607445978,-500.0,0.00019726,2]
[357945019,1744607445988,-536.01507649,0.00019726,2]
[357945020,1744607445997,-500.0,0.00019726,2]
[357945021,1744607446007,-500.0,0.00019726,2]
[357945022,1744607446016,-500.0,0.00019726,2]
[357945023,1744607446026,-1629.59,0.00019726,2]
[357945024,1744607446035,-500.0,0.00019726,2]
[357945026,1744607446045,-500.0,0.00019726,2]
[357945027,1744607446054,-500.0,0.00019726,2]
[357945029,1744607446065,-485.89172248,0.00019726,2]
[357945030,1744607446081,-500.0,0.00019726,2]
[357945031,1744607446092,-500.0,0.00019726,2]
[357945032,1744607446102,-500.0,0.00019726,2]
[357945033,1744607446112,-500.0,0.00019726,2]
[357945034,1744607446123,-500.0,0.00019726,2]
[357945035,1744607446133,-500.0,0.00019726,2]
[357945036,1744607446142,-500.0,0.00019726,2]
[357945037,1744607446154,-500.0,0.00019726,2]
[357945038,1744607446164,-500.0,0.00019726,2]
[357945039,1744607446174,-500.0,0.00019726,2]
[357945040,1744607446184,-500.0,0.00019726,2]
[357945041,1744607446194,-267.07136482,0.00019726,2]
[357945042,1744607446203,-500.0,0.00019726,2]
[357945043,1744607446212,-522.49,0.00019726,2]
[357945044,1744607446222,-500.0,0.00019726,2]
[357945045,1744607446232,-570.51064157,0.00019726,2]
[357945046,1744607446242,-569.22868221,0.00019726,2]
[357945047,1744607446251,-500.0,0.00019726,2]
[357945048,1744607446261,-500.0,0.00019726,2]
[357945049,1744607446270,-500.0,0.00019726,2]
[357945050,1744607446280,-521.24087855,0.00019726,2]
[357945051,1744607446289,-500.0,0.00019726,2]
[357945052,1744607446299,-500.0,0.00019726,2]
[357945053,1744607446308,-500.0,0.00019726,2]
[357945054,1744607446319,-419.76337585,0.00019726,2]
[357945055,1744607446328,-500.0,0.00019726,2]
[357945056,1744607446338,-500.0,0.00019726,2]
[357945057,1744607446347,-500.0,0.00019726,2]
[357945058,1744607446355,-500.0,0.00019726,2]
[357945059,1744607446365,-658.14,0.00019726,2]
[357945060,1744607446375,-500.0,0.00019726,2]
[357945061,1744607446384,-500.0,0.00019726,2]
[357945062,1744607446393,-500.0,0.00019726,2]
[357945063,1744607446403,-467.67208001,0.00019726,2]
[357945064,1744607446412,-500.0,0.00019726,2]
[357945065,1744607446421,-500.0,0.00019726,2]
[357945066,1744607446431,-755.42,0.00019726,2]
[357945067,1744607446441,-500.0,0.00019726,2]
[357945068,1744607446450,-500.0,0.00019726,2]
[357945069,1744607446460,-500.0,0.00019726,2]
[357945070,1744607446469,-500.0,0.00019726,2]
[357945071,1744607446478,-500.0,0.00019726,2]
[357945072,1744607446487,-500.0,0.00019726,2]
[357945073,1744607446498,-500.0,0.00019726,2]
[357945074,1744607446507,-500.0,0.00019726,2]
[357945075,1744607446517,-500.0,0.00019726,2]
[357945076,1744607446527,-525.55,0.00019726,2]
[357945077,1744607446536,-277.99455762,0.00019726,2]
[357945078,1744607446546,-500.0,0.00019726,2]
[357945079,1744607446555,-500.0,0.00019726,2]
[357945080,1744607446566,-629.63,0.00019726,2]
[357945081,1744607446575,-500.0,0.00019726,2]
[357945082,1744607446585,-500.0,0.00019726,2]
[357945083,1744607446594,-500.0,0.00019726,2]
[357945084,1744607446603,-500.0,0.00019726,2]
[357945085,1744607446612,-189.03754504,0.00019726,2]
[357945086,1744607446622,-500.0,0.00019726,2]
[357945087,1744607446631,-505.07611106,0.00019726,2]
[357945088,1744607446640,-667.53,0.00019726,2]
[357945089,1744607446650,-262.49643499,0.00019726,2]
[357945090,1744607446660,-364.21581263,0.00019726,2]
[357945091,1744607446669,-500.0,0.00019726,2]
[357945092,1744607446679,-500.0,0.00019726,2]
[357945093,1744607446688,-500.0,0.00019726,2]
[357945094,1744607446697,-500.0,0.00019726,2]
[357945095,1744607446706,-500.0,0.00019726,2]
[357945096,1744607446851,-500.0,0.00019726,2]
[357945097,1744607446860,-500.0,0.00019726,2]
[357945098,1744607446871,-345.01569667,0.00019726,2]
[357945099,1744607446882,-474.34,0.00019726,2]
[357945100,1744607446892,-8135.07,0.00019726,2]
[357945101,1744607446901,-628.05958251,0.00019726,2]
[357945102,1744607446911,-428.66475024,0.00019732,2]
[357945103,1744607446922,-301.69882718,0.00019735,2]
[357945104,1744607446932,-420.0,0.00019735,2]
[357945105,1744607446942,-1156.59845602,0.00019737,2]
[357945106,1744607446952,-578.29922805,0.00019737,2]
[357945107,1744607446962,-348.60500372,0.00019744,2]
[357945108,1744607446973,-58718.26523162,0.00019746,2]
[357945109,1744607446982,-428.66475024,0.00019748,2]
[357945110,1744607446994,-578.29922805,0.00019764,2]
[357945111,1744607447003,-879.67494046,0.00019765,2]
[357945112,1744607447012,-500.0,0.00019767,2]
[357945113,1744607447022,-58718.26523162,0.00019768,2]
[357945114,1744607447031,-29359.13261585,0.00019769,2]
[357945115,1744607447040,-387.32897572,0.00019771,2]
[357945116,1744607447051,-500.0,0.00019773,2]
[357945117,1744607447060,-1230.90581508,0.00019773,2]
[357945118,1744607447075,-58718.26523162,0.00019778,2]
[357945119,1744607447084,-720.165,0.00019778,2]
[357945120,1744607447094,-1230.90581508,0.00019781,2]
[357945121,1744607447103,-29359.13261585,0.00019782,2]
[357945122,1744607447112,-761.68160828,0.00019788,2]
[357945123,1744607447123,-2559.774,0.00019798,2]
[357945124,1744607447132,-152.0,0.00019798,2]
[357945125,1744607447142,-250.0,0.00019799,2]
[357945126,1744607447152,-367.598948,0.00019799,2]
[357945127,1744607447161,-761.68160828,0.000198,2]
[357945128,1744607447171,-250.0,0.000198,2]
[357945129,1744607447180,-587.14916858,0.00019809,2]
[357945130,1744607447190,-2454.31405103,0.00019809,2]
[357945131,1744607447199,-500.0,0.00019863,2]
[357945132,1744607447209,-500.0,0.00019863,2]
[357945133,1744607447218,-500.0,0.00019863,2]
[357945134,1744607447227,-500.0,0.00019863,2]
[357945135,1744607447237,-500.0,0.00019863,2]
[357945136,1744607447246,-500.0,0.00019863,2]
[357945137,1744607447255,-500.0,0.00019863,2]
[357945138,1744607447264,-500.0,0.00019863,2]
[357945139,1744607447274,-500.0,0.00019863,2]
[357945140,1744607447283,-500.0,0.00019863,2]
[357945141,1744607447292,-500.0,0.00019863,2]
[357945142,1744607447301,-500.0,0.00019863,2]
[357945143,1744607447311,-500.0,0.00019863,2]
[357945144,1744607447321,-500.0,0.00019863,2]
[357945145,1744607447332,-500.0,0.00019863,2]
[357945146,1744607447342,-500.0,0.00019863,2]
[357945147,1744607447353,-500.0,0.00019863,2]
[357945148,1744607447363,-500.0,0.00019863,2]
[357945149,1744607447372,-500.0,0.00019863,2]
[357945150,1744607447383,-168.74675712,0.00019863,2]
[357945151,1744607447391,-500.0,0.00019863,2]
[357945152,1744607447401,-194.36210043,0.00019886,2]
[357945153,1744607447410,-500.0,0.00019899,2]
[357945154,1744607447419,-500.0,0.000199,2]
[357945155,1744607447428,-159.98608336,0.000199,2]
[357945156,1744607447438,-30206.8746,0.000199,2]
[357945157,1744607447446,-1000.0,0.000199,2]
[357945158,1744607447456,-216.46539829,0.000199,2]
[357945159,1744607447466,-587.14916858,0.000199,2]
[357945160,1744607447477,-2454.31405103,0.000199,2]
[357945161,1744607447486,-649.27122602,0.000199,2]
[357945162,1744607447497,-962.0557399,0.00019986,2]
[357945163,1744607447506,-729.5005332,0.00019986,2]
[357945164,1744607447517,-9665.4006772,0.00019986,2]
[357945165,1744607447526,-150.0,0.00019998,2]
[357945166,1744607447535,-1328.0,0.00019998,2]
[357945167,1744607447545,-2047.0,0.00019998,2]
[357945168,1744607447555,-1287.0,0.00019998,2]
[357945169,1744607447565,-791.0,0.00019998,2]
[357945170,1744607447574,-1279.0,0.00019998,2]
[357945171,1744607447584,-545.0,0.00019998,2]
[357945172,1744607447593,-1438.0,0.00019998,2]
[357945173,1744607447602,-907.0,0.00019998,2]
[357945174,1744607447612,-575.0,0.00019998,2]
[357945175,1744607447621,-4148.0,0.00019998,2]
[357945176,1744607447631,-1501.45449669,0.00019998,2]
[357945177,1744607447640,-300.0,0.00019999,2]
[357945178,1744607447649,-676.03545945,0.00019999,2]
[357945179,1744607447658,-1001.25512709,0.00019999,2]
[357945180,1744607447668,-500.0,0.00019999,2]
[357945181,1744607447677,-500.0,0.00019999,2]
[357945182,1744607447687,-500.0,0.00019999,2]
[357945183,1744607447697,-500.0,0.00019999,2]
[357945184,1744607447706,-595.54791246,0.00019999,2]
[357945185,1744607447715,-91164.62270924,0.0002,2]
[357945186,1744607447725,-262.45863438,0.0002,2]
[357945187,1744607447734,-997270.10205905,0.0002,2]
[357945188,1744607447912,-1699.956,0.0002,2]
[357945189,1744607447944,-515.22611937,0.00019178,2]
[357945190,1744607447954,-79758.22638505,0.0002,2]
[357945191,1744607447966,-655.47499998,0.0002,2]
[357945192,1744607450320,-167.49215901,0.00019178,2]
[357945193,1744607450331,-353.95492201,0.00019178,2]
[357945194,1744607450341,-500.0,0.00019178,2]
[357945195,1744607450350,-113.71229803,0.00019178,2]
[357945196,1744607450467,-386.28770197,0.00019178,2]
[357945197,1744607450477,-529.2465344,0.00019178,2]
[357945198,1744607450487,-563.79102256,0.00019178,2]
[357945199,1744607450496,-597.9328826,0.00019452,2]
[357945200,1744607450505,-29771.74185747,0.0002,2]
[357945201,1744607450516,-7008.40341446,0.0002,2]
[357945202,1744607450527,-1173.60410705,0.0002,2]
[357945203,1744607450538,-13547.16567832,0.0002,2]
[357945204,1744607450549,-259.43931699,0.0002,2]
[357945205,1744607481119,200.0,0.00019349,7]
[357945206,1744607510311,800.0,0.00017168,2]
[357945207,1744607515452,159.575704,0.0002,4]
[357945209,1744607516853,187.0,0.000173,2]
[357945210,1744607526705,155.026291,0.0002,4]
[357945211,1744607551756,170.72257,0.0002,4]
[357945212,1744607572574,160.581666,0.0002,4]
[357945213,1744607587616,155.026291,0.0002,4]
[357945214,1744607609961,215.07914338,0.00017168,2]
[357945215,1744607609992,284.92085662,0.00017168,2]
[357945216,1744607611658,154.124542,0.0002,4]
[357945217,1744607611943,154.124542,0.0002,4]
[357945218,1744607633202,160.581665,0.0002,4]
[357945220,1744608070854,500.0,0.0002,5]
[357945221,1744608082354,500.0,0.0002,5]
[357945222,1744608097551,500.0,0.0002,5]
[357945223,1744608109626,500.0,0.0002,5]
[357945224,1744608137211,1000.26,0.0002,5]
[357945225,1744608168110,500.0,0.0002,5]
[357945226,1744608215536,157.870258,0.0002,4]
[357945227,1744608216199,157.870258,0.0002,4]
[357945228,1744608227342,153.411136,0.0002,4]
[357945229,1744608227642,153.411136,0.0002,4]
[357945230,1744608227957,153.411136,0.0002,4]
[357945231,1744608228245,153.411136,0.0002,4]
[357945232,1744608228529,153.411136,0.0002,4]
[357945233,1744608229975,153.411136,0.000188,5]
[357945234,1744608232226,153.411136,0.000221,30]
[357945235,1744608257705,849.39,0.00016423,2]
[357945239,1744608542212,-250.02354742,0.00018043,2]
[357945245,1744608563902,-178.85213979,0.00017952,2]
[357945246,1744608570072,200.0,0.00018009,7]
[357945249,1744608604798,2000.0,0.0002,4]
[357945259,1744608631935,-503.48436925,0.00018043,2]
[357945274,1744608632359,-827.78208333,0.00018043,2]
[357945275,1744608632369,-1102.03449933,0.000181,2]
[357945276,1744608632378,-854.67,0.00018201,2]
[357945277,1744608632387,-500.0,0.00018264,2]
[357945278,1744608632396,-800.0,0.00018264,2]
[357945279,1744608632405,-1759.18423829,0.00018299,2]
[357945280,1744608632418,-1371.79576171,0.00018299,2]
[357945281,1744608632428,-663.0,0.00018332,2]
[357945282,1744608632437,-300.0,0.00018369,2]
[357945283,1744608632449,-300.0,0.00018369,2]
[357945284,1744608632459,-1205.32,0.0001837,2]
[357945285,1744608632469,-1000.0,0.00018397,2]
[357945287,1744608632478,-250.0,0.00018423,2]
[357945289,1744608632489,-159.97,0.00018545,2]
[357945291,1744608632498,-6205.76,0.00018686,2]
[357945293,1744608632508,-849.39,0.00018687,2]
[357945295,1744608632519,-175.89,0.00018702,2]
[357945297,1744608632528,-627.62,0.00018729,2]
[357945299,1744608632538,-166.23,0.00018889,2]
[357945301,1744608632549,-250.0,0.00019,2]
[357945303,1744608632562,-250.0,0.00019,2]
[357945305,1744608632571,-259.58769396,0.00019073,2]
[357945307,1744608632580,-263.35406425,0.00019078,2]
[357945309,1744608632590,-642.92068481,0.00019078,2]
[357945311,1744608632598,-37210.8403,0.00019078,2]
[357945313,1744608632608,-500.0,0.00019078,2]
[357945315,1744608632617,-214.62213847,0.00019078,2]
[357945317,1744608632626,-747.6229,0.00019078,2]
[357945319,1744608632636,-881.5296,0.00019078,2]
[357945321,1744608632645,-3123.9028,0.00019078,2]
[357945323,1744608632655,-1000.0,0.00019078,2]
[357945325,1744608632664,-1904.1844,0.00019078,2]
[357945327,1744608632674,-3646.8691,0.00019078,2]
[357945329,1744608632685,-4960.5687,0.00019078,2]
[357945331,1744608632694,-1010.2549,0.00019078,2]
[357945333,1744608632704,-1000.0,0.00019078,2]
[357945335,1744608632713,-2500.0,0.00019078,2]
[357945337,1744608632723,-12207.7433,0.00019078,2]
[357945339,1744608632731,-1744.5302471,0.000191,2]
[357945340,1744608632741,-207.4,0.00019166,2]
[357945343,1744608632751,-1060.63696798,0.00019168,2]
[357945346,1744608632778,-413.63950816,0.00019168,2]
[357945492,1744608637860,-148.28352386,0.00019168,2]
[357945493,1744608637872,-263.35406416,0.00019169,2]
[357945494,1744608637883,-21.30802066,0.00019173,2]
[357945495,1744608637979,-478.69197934,0.00019173,2]
[357945496,1744608637990,-500.0,0.00019173,2]
[357945497,1744608638001,-166.90532284,0.00019177,2]
[357945498,1744608638011,-198.52647448,0.00019177,2]
[357945499,1744608638020,-175.50939751,0.00019177,2]
[357945500,1744608638030,-328.0989773,0.00019178,2]
[357945501,1744608638042,-1521.3955377,0.00019178,2]
[357945502,1744608638052,-152.034361,0.00019178,2]
[357945503,1744608638061,-160.581665,0.00019178,2]
[357945504,1744608638071,-500.0,0.00019178,2]
[357945505,1744608638080,-500.0,0.00019178,2]
[357945506,1744608638090,-504.37339981,0.00019178,2]
[357945507,1744608638100,-600.54332449,0.00019178,2]
[357945508,1744608638110,-500.0,0.00019178,2]
[357945509,1744608638120,-500.0,0.00019178,2]
[357945510,1744608638130,-500.0,0.00019178,2]
[357945511,1744608638139,-500.0,0.00019178,2]
[357945512,1744608638149,-500.0,0.00019178,2]
[357945513,1744608638159,-500.0,0.00019178,2]
[357945514,1744608638168,-500.0,0.00019178,2]
[357945515,1744608638177,-500.0,0.00019178,2]
[357945516,1744608638187,-500.0,0.00019178,2]
[357945517,1744608638196,-647.33425274,0.00019178,2]
[357945518,1744608638206,-499.55691576,0.00019178,2]
[357945519,1744608638215,-506.05094994,0.00019178,2]
[357945520,1744608638224,-500.0,0.00019178,2]
[357945521,1744608638233,-508.67357697,0.00019178,2]
[357945522,1744608638242,-500.0,0.00019178,2]
[357945523,1744608638251,-500.0,0.00019178,2]
[357945524,1744608638261,-502.23248882,0.00019178,2]
[357945525,1744608638270,-500.0,0.00019178,2]
[357945526,1744608638279,-514.04058335,0.00019178,2]
[357945528,1744608638289,-505.83396544,0.00019178,2]
[357945530,1744608638298,-500.0,0.00019178,2]
[357945531,1744608638308,-501.85629369,0.00019178,2]
[357945532,1744608638317,-521.49458855,0.00019178,2]
[357945533,1744608638326,-511.05145884,0.00019178,2]
[357945534,1744608638336,-500.0,0.00019178,2]
[357945535,1744608638346,-500.0,0.00019178,2]
[357945536,1744608638355,-514.79175643,0.00019178,2]
[357945537,1744608638364,-511.89480824,0.00019178,2]
[357945538,1744608638374,-513.13795674,0.00019178,2]
[357945539,1744608638384,-510.25275025,0.00019178,2]
[357945540,1744608638393,-510.54374135,0.00019178,2]
[357945541,1744608638403,-500.0,0.00019178,2]
[357945542,1744608638412,-509.4602411,0.00019178,2]
[357945543,1744608638421,-509.83526668,0.00019178,2]
[357945544,1744608638430,-500.0,0.00019178,2]
[357945545,1744608638439,-500.0,0.00019178,2]
[357945546,1744608638453,-517.46010903,0.00019178,2]
[357945547,1744608638462,-500.0,0.00019178,2]
[357945548,1744608638471,-500.0,0.00019178,2]
[357945549,1744608638482,-500.0,0.00019178,2]
[357945550,1744608638492,-500.0,0.00019178,2]
[357945551,1744608638501,-500.0,0.00019178,2]
[357945552,1744608638511,-500.0,0.00019178,2]
[357945553,1744608638522,-500.0,0.00019178,2]
[357945554,1744608638531,-498.47130149,0.00019178,2]
[357945555,1744608638540,-503.816887,0.00019178,2]
[357945556,1744608638549,-211.44987827,0.00019178,2]
[357945557,1744608638558,-500.0,0.00019178,2]
[357945558,1744608638567,-580.43780665,0.00019178,2]
[357945559,1744608638576,-500.0,0.00019178,2]
[357945560,1744608638586,-500.0,0.00019178,2]
[357945561,1744608638595,-500.0,0.00019178,2]
[357945562,1744608638604,-500.0,0.00019178,2]
[357945563,1744608638614,-500.0,0.00019178,2]
[357945564,1744608638624,-500.0,0.00019178,2]
[357945565,1744608638633,-500.0,0.00019178,2]
[357945566,1744608638643,-500.0,0.00019178,2]
[357945567,1744608638652,-500.0,0.00019178,2]
[357945568,1744608638662,-500.0,0.00019178,2]
[357945569,1744608638671,-500.0,0.00019178,2]
[357945570,1744608638680,-500.0,0.00019178,2]
[357945571,1744608638689,-500.0,0.00019178,2]
[357945572,1744608638699,-417.07669203,0.00019178,2]
[357945573,1744608638708,-500.0,0.00019178,2]
[357945574,1744608638718,-500.0,0.00019178,2]
[357945575,1744608638727,-500.0,0.00019178,2]
[357945576,1744608638737,-500.0,0.00019178,2]
[357945577,1744608638746,-500.0,0.00019178,2]
[357945578,1744608638755,-500.0,0.00019178,2]
[357945579,1744608638764,-500.0,0.00019178,2]
[357945580,1744608638773,-500.0,0.00019178,2]
[357945581,1744608638783,-500.0,0.00019178,2]
[357945582,1744608638791,-500.0,0.00019178,2]
[357945583,1744608638801,-500.0,0.00019178,2]
[357945584,1744608638810,-500.0,0.00019178,2]
[357945585,1744608638819,-500.0,0.00019178,2]
[357945586,1744608638828,-500.0,0.00019178,2]
[357945587,1744608638838,-500.0,0.00019178,2]
[357945588,1744608638847,-500.0,0.00019178,2]
[357945589,1744608638857,-500.0,0.00019178,2]
[357945590,1744608638866,-500.0,0.00019178,2]
[357945591,1744608638875,-500.0,0.00019178,2]
[357945592,1744608638884,-500.0,0.00019178,2]
[357945593,1744608638894,-500.0,0.00019178,2]
[357945594,1744608638903,-500.0,0.00019178,2]
[357945595,1744608638912,-566.24606965,0.00019178,2]
[357945596,1744608638922,-500.0,0.00019178,2]
[357945597,1744608638931,-500.0,0.00019178,2]
[357945598,1744608638940,-500.0,0.00019178,2]
[357945599,1744608638949,-500.0,0.00019178,2]
[357945600,1744608638959,-502.39606494,0.00019178,2]
[357945601,1744608638967,-500.0,0.00019178,2]
[357945602,1744608638977,-500.0,0.00019178,2]
[357945603,1744608638986,-500.0,0.00019178,2]
[357945604,1744608638995,-500.0,0.00019178,2]
[357945605,1744608639005,-502.29551206,0.00019178,2]
[357945606,1744608639014,-500.0,0.00019178,2]
[357945607,1744608639024,-500.0,0.00019178,2]
[357945608,1744608639033,-500.0,0.00019178,2]
[357945609,1744608639043,-500.0,0.00019178,2]
[357945610,1744608639052,-506.95338107,0.00019178,2]
[357945611,1744608639062,-500.0,0.00019178,2]
[357945612,1744608639072,-500.0,0.00019178,2]
[357945613,1744608639082,-500.0,0.00019178,2]
[357945614,1744608639092,-504.5882389,0.00019178,2]
[357945615,1744608639102,-509.28842295,0.00019178,2]
[357945616,1744608639111,-500.0,0.00019178,2]
[357945617,1744608639120,-500.0,0.00019178,2]
[357945618,1744608639130,-500.0,0.00019178,2]
[357945619,1744608639139,-500.0,0.00019178,2]
[357945620,1744608639149,-500.0,0.00019178,2]
[357945621,1744608639159,-500.0,0.00019178,2]